[Event "Polish Youth Ekstraliga 2022"]
[Site "Lublin"]
[Date "2022.07.01"]
[Round "7.2"]
[White "Ochedzan, Tymon"]
[Black "Koziorowicz, Michal"]
[Result "1/2-1/2"]
[ECO "B40"]
[WhiteElo "2261"]
[BlackElo "2231"]
[Annotator "TA"]
[PlyCount "110"]
[EventDate "2022.06.24"]
[EventType "team-tourn"]
[EventCountry "POL"]
[SourceTitle "playchess.com"]
[Source "ChessBase"]
[SourceQuality "1"]
[TimeControl "40/5400+30:1800+30"]

{[%evp 9,110,25,36,44,60,59,58,31,42,36,45,64,67,62,49,40,72,74,62,52,81,75,75,81,116,152,155,140,186,184,200,169,205,184,260,164,149,120,107,109,101,18,34,36,64,11,22,0,40,0,0,0,2,8,304,296,293,294,388,381,379,359,407,399,479,166,166,166,259,185,117,117,117,7,7,7,7,7,7,7,7,7,7,7,7,0,0,0,0,0,0,0,0,0,0,0,0,0,0,0,0,0,0]} 1. e4 {[%emt 0:00:03]} c5 {[%emt 0:00:38]} 2. Nf3 {[%emt 0:00:11]} e6 {[%emt 0:00:08]} 3. g3 {[%emt 0:00:14]} Nc6 {[%emt 0:02:31]} 4. Bg2 {[%emt 0:00:09]} Qc7 {[%emt 0:01:33]} 5. Qe2 {[%emt 0:02:48]} Nf6 {[%emt 0:06:15]} 6. O-O {[%emt 0:00:51] B40: Sicilian: 2...e6, Unusual lines.} d5 {[%emt 0:10:05] 6...Be7 is setting a new trend.} 7. exd5 {[%emt 0:03:58]} Nxd5 {[%emt 0:00:06] [#]} 8. c4 $146 {[%emt 0:00:58] White is slightly better.} ({Predecessor:} 8. Rd1 Be7 9. d4 O-O 10. c4 Nf6 11. Nc3 cxd4 12. Nxd4 Nxd4 13. Rxd4 Bd7 14. Bf4 {1-0 (47) Goumas,G (2371)-Panagiotopoulos,A (2135) Anogia 2014}) 8... Nf6 {[%emt 0:09:14]} 9. Nc3 {[%emt 0:02:31][%cal Od2d4]} a6 {[%emt 0:06:03]} 10. Rd1 {[%emt 0:06:51]} Nd4 {[%emt 0:08:15]} 11. Nxd4 {[%emt 0:06:44]} cxd4 {[%emt 0:00:08]} 12. Ne4 {[%emt 0:00:11]} Nxe4 {[%emt 0:05:06]} 13. Qxe4 {[%emt 0:05:13]} Bc5 {[%emt 0:07:08]} 14. b4 {[%emt 0:05:23][%cal Bb2b4,Bb4b5,Bb5b6][%mdl 32]} f5 {[%emt 0:03:20]} 15. Qd3 {[%emt 0:03:39]} Be7 {[%emt 0:01:03]} 16. Rb1 {[%emt 0:09:40]} (16. Qxd4 $2 Bf6 17. Qc5 Qxc5 18. bxc5 Bxa1 $19) 16... e5 {[%emt 0:04:00]} 17. Bd5 $1 {[%emt 0:03:08] Against Be6} Bf6 {[%emt 0:03:20]} 18. Re1 {[%emt 0:04:46]} Kf8 {[%emt 0:03:59]} (18... h5 $16 {was called for.}) 19. b5 $18 {[%emt 0:03:20]} g6 {[%emt 0:00:15]} 20. b6 {[%emt 0:03:10]} Qd8 {[%emt 0:00:17]} 21. Qb3 {[%emt 0:04:32]} Rb8 {[%emt 0:04:19]} (21... Kg7 {keeps fighting.} 22. Ba3 a5) 22. d3 {[%emt 0:03:26]} (22. f4 e4 $16) 22... Kg7 {[%emt 0:01:00] Inhibits Bh6+.} 23. f4 {[%emt 0:05:08] 0x0.00207cc33742dp-1022s more active pieces. The black rooks are badly placed.} e4 {[%emt 0:01:20]} 24. dxe4 {[%emt 0:01:22]} fxe4 {[%emt 0:00:05]} 25. Bxe4 {[%emt 0:00:24]} (25. Bb2 $1 $16) 25... Re8 $11 {[%emt 0:01:10]} 26. Bb2 $36 {[%emt 0:02:44][%mdl 2048] Black is under pressure.} Be6 {[%emt 0:01:37]} 27. Rbd1 {[%emt 0:03:45]} (27. Bf3 $14) 27... Rc8 {[%emt 0:06:30]} 28. Bd5 {[%emt 0:06:50]} (28. Bxb7 {keeps more tension.} Bxc4 29. Rxe8 Qxe8 30. Qc2) 28... Bg4 {[%emt 0:00:54]} 29. Rxe8 {[%emt 0:02:51]} (29. Bxb7 Bxd1 30. Rxd1 Rb8 $17) 29... Qxe8 {[%emt 0:00:06]} 30. Bf3 {[%emt 0:00:11] Inhibits Qe2.} ({Don't go for} 30. Bxd4 $2 Bxd4+ 31. Kh1 Qe2 $1 $19) ({Of course not} 30. Bxb7 Rb8 31. Bd5 Bxd1 32. Qxd1 Qe3+ 33. Kg2 Rxb6 $17) 30... Bxf3 {[%emt 0:03:41]} 31. Qxf3 {[%emt 0:00:05]} Qc6 {[%emt 0:00:04][%mdl 8192]} (31... Rxc4 $11 32. Qxb7+ Kh8) 32. Qxc6 $18 {[%emt 0:01:24]} Rxc6 {[%emt 0:00:01] [#]} 33. c5 {[%emt 0:00:33]} (33. Bxd4 Bxd4+ 34. Rxd4 Rxb6 $16) 33... Rxc5 {[%emt 0:07:45]} 34. Bxd4 {[%emt 0:00:18]} Bxd4+ {[%emt 0:00:04]} 35. Rxd4 {[%emt 0:00:04][%mdl 4096] Endgame KR-KR} Ra5 {[%emt 0:00:05]} 36. Rd7+ {[%emt 0:04:07]} Kf6 {[%emt 0:01:38]} 37. Rxh7 {[%emt 0:01:57]} (37. Rxb7 Rxa2 38. Rxh7) 37... Rxa2 {[%emt 0:00:09]} 38. Rxb7 {[%emt 0:01:10] Strongly threatening Rb8.} Rb2 {[%emt 0:00:33]} (38... Kf5 {is a better defense.} 39. h3 Rb2) 39. Rb8 {[%emt 0:01:44] Black must now prevent h4.} Kf5 {[%emt 0:00:16]} 40. b7 {[%emt 0:00:00] White wants to mate with Rf8+.} Kg4 {[%emt 0:00:00]} 41. Ra8 {[%emt 0:13:33]} ({White should try} 41. Kf1 $16 a5 42. Ke1) 41... Rxb7 $11 {[%emt 0:01:04] The position is equal.} 42. Rxa6 {[%emt 0:00:08]} g5 {[%emt 0:01:13]} 43. fxg5 {[%emt 0:01:08]} Rb1+ {[%emt 0:01:35]} (43... Kxg5 44. h4+ Kg4 45. Rg6+ Kh5 46. Rg5+ Kh6 47. Kg2 $18 (47. g4 Rb3 $18)) 44. Kf2 {[%emt 0:00:18] aiming for g6.} Rb2+ {[%emt 0:00:04]} 45. Ke3 {[%emt 0:00:54] Threatens to win with h4.} Rxh2 {[%emt 0:00:08]} 46. g6 {[%emt 0:01:51] Threatening mate with g7.} Rh8 {[%emt 0:00:49]} 47. Ke4 {[%emt 0:01:54]} Rg8 {[%emt 0:03:14]} 48. Re6 {[%emt 0:04:05]} Rg7 {[%emt 0:00:31]} 49. Rd6 {[%emt 0:00:14]} Rg8 {[%emt 0:00:08]} 50. Ra6 {[%emt 0:00:09]} Rg7 {[%emt 0:00:05]} 51. Ke3 {[%emt 0:00:25]} Kxg3 {[%emt 0:00:07]} 52. Ra1 {[%emt 0:00:24] Intending Rg1+ and mate.} Kg4 {[%emt 0:00:09]} 53. Ke4 {[%emt 0:00:11] White threatens Rg1+ and mate.} Rxg6 {[%emt 0:00:11]} 54. Rg1+ {[%emt 0:00:05]} Kh5 {[%emt 0:00:05]} 55. Rxg6 {[%emt 0:00:05]} Kxg6 {[%emt 0:00:04] Blacks defense is rewarded with a draw.  Weighted Error Value: White=0.22 (precise) /Black=0.23 (precise)} 1/2-1/2

[Event "Polish Youth Ekstraliga 2022"]
[Site "Lublin"]
[Date "2022.07.01"]
[Round "7.3"]
[White "Raczek, Krzysztof"]
[Black "Jaworski, Tymon"]
[Result "1/2-1/2"]
[ECO "A04"]
[WhiteElo "2114"]
[BlackElo "1628"]
[Annotator "RC"]
[PlyCount "115"]
[EventDate "2022.06.24"]
[EventType "team-tourn"]
[EventCountry "POL"]
[SourceTitle "playchess.com"]
[Source "ChessBase"]
[SourceQuality "1"]
[TimeControl "40/5400+30:1800+30"]

1. Nf3 {[%emt 0:00:01]} c5 {[%emt 0:00:12]} 2. c4 {[%emt 0:00:04]} Nf6 {[%emt 0:01:49]} 3. g3 {[%emt 0:00:15]} e6 {[%emt 0:03:51]} 4. Bg2 {[%emt 0:00:07]} Be7 {[%emt 0:02:44]} 5. O-O {[%emt 0:00:11]} O-O {[%emt 0:00:15]} 6. b3 {[%emt 0:00:02]} Nc6 {[%emt 0:01:46]} 7. Bb2 {[%emt 0:00:05]} b6 {[%emt 0:03:30]} 8. Nc3 {[%emt 0:01:51]} Bb7 {[%emt 0:01:19]} 9. d4 {[%emt 0:00:30]} cxd4 {[%emt 0:02:55]} 10. Nxd4 {[%emt 0:00:02]} Na5 {[%emt 0:00:36]} 11. e4 {[%emt 0:02:28]} d6 {[%emt 0:02:13]} 12. Qe2 {[%emt 0:01:14]} a6 {[%emt 0:11:25]} 13. b4 {[%emt 0:00:38]} Nc6 {[%emt 0:03:07]} 14. Nxc6 {[%emt 0:01:11]} Bxc6 {[%emt 0:00:05]} 15. e5 {[%emt 0:00:08]} Bxg2 {[%emt 0:00:46]} 16. exf6 {[%emt 0:00:02]} Bxf1 {[%emt 0:00:17]} 17. fxe7 {[%emt 0:00:03]} Bxe2 {[%emt 0:00:36]} 18. exd8=Q {[%emt 0:00:13]} Rfxd8 {[%emt 0:00:55]} 19. Nxe2 {[%emt 0:00:10]} Rac8 {[%emt 0:02:54]} 20. Bd4 {[%emt 0:03:21]} Rxc4 {[%emt 0:05:51]} 21. Bxb6 {[%emt 0:00:26]} Rb8 {[%emt 0:01:18]} 22. Ba5 {[%emt 0:00:02]} Kf8 {[%emt 0:00:55]} 23. Rd1 {[%emt 0:00:34]} Ke7 {[%emt 0:03:16]} 24. Nd4 {[%emt 0:01:27]} g6 {[%emt 0:06:41]} 25. Rd2 {[%emt 0:00:13]} Rbc8 {[%emt 0:07:38]} 26. Kf1 {[%emt 0:03:55]} e5 {[%emt 0:02:59]} 27. Nb3 {[%emt 0:00:13]} Ke6 {[%emt 0:03:44]} 28. Ke2 {[%emt 0:00:15]} g5 {[%emt 0:05:32]} 29. h3 {[%emt 0:01:43]} h5 {[%emt 0:03:30]} 30. Kd3 {[%emt 0:09:51]} Rc3+ {[%emt 0:01:45]} 31. Ke2 {[%emt 0:00:04]} R3c4 {[%emt 0:00:38]} 32. a3 {[%emt 0:04:38]} Rc3 {[%emt 0:06:08]} 33. Rd3 {[%emt 0:00:01]} Rc2+ {[%emt 0:05:24]} 34. Nd2 {[%emt 0:00:37]} f5 {[%emt 0:01:33]} 35. Bb6 {[%emt 0:16:41]} R2c6 {[%emt 0:01:22]} 36. Ba5 {[%emt 0:00:23]} Rc2 {[%emt 0:02:49]} 37. Bb6 {[%emt 0:02:18]} R2c6 {[%emt 0:00:35]} 38. Ba5 {[%emt 0:00:12]} Rc2 {[%emt 0:05:52]} 39. f3 {[%emt 0:00:26]} R2c6 {[%emt 0:00:41]} 40. a4 {[%emt 0:00:00]} h4 {[%emt 0:00:00]} 41. g4 {[%emt 0:15:11]} fxg4 {[%emt 0:04:00]} 42. fxg4 {[%emt 0:01:05]} Rc2 {[%emt 0:03:06]} 43. Bb6 {[%emt 0:04:55]} R8c4 {[%emt 0:03:06]} 44. Rb3 {[%emt 0:01:33]} d5 {[%emt 0:01:33]} 45. Bd8 {[%emt 0:07:27]} e4 {[%emt 0:01:36]} 46. Bxg5 {[%emt 0:05:06]} d4 {[%emt 0:00:33]} 47. b5 {[%emt 0:10:06]} axb5 {[%emt 0:02:32]} 48. axb5 {[%emt 0:02:50]} e3 {[%emt 0:05:52]} 49. Bxe3 {[%emt 0:00:38]} dxe3 {[%emt 0:00:34]} 50. Kxe3 {[%emt 0:08:35]} R2c3+ {[%emt 0:02:25]} 51. Rxc3 {[%emt 0:01:02]} Rxc3+ {[%emt 0:00:09]} 52. Kf4 {[%emt 0:00:05]} Rxh3 {[%emt 0:00:56]} 53. Nf3 {[%emt 0:00:25]} Rh1 {[%emt 0:00:37]} 54. g5 {[%emt 0:00:10]} Kf7 {[%emt 0:01:45]} 55. Kg4 {[%emt 0:00:21]} Rb1 {[%emt 0:00:38]} 56. Kxh4 {[%emt 0:00:26]} Rxb5 {[%emt 0:00:19]} 57. Kh5 {[%emt 0:00:14]} Rxg5+ {[%emt 0:00:49]} 58. Nxg5+ {[%emt 0:00:05]} 1/2-1/2

[Event "Polish Youth Ekstraliga 2022"]
[Site "Lublin"]
[Date "2022.07.01"]
[Round "7.4"]
[White "Ochedzan, Filip"]
[Black "Grzebieniowski, Michal"]
[Result "0-1"]
[ECO "B07"]
[WhiteElo "1873"]
[BlackElo "1635"]
[Annotator "NA RC"]
[PlyCount "68"]
[EventDate "2022.06.24"]
[EventType "team-tourn"]
[EventCountry "POL"]
[SourceTitle "playchess.com"]
[Source "ChessBase"]
[SourceQuality "1"]
[TimeControl "40/5400+30:1800+30"]

1. e4 {[%emt 0:00:05]} d6 {[%emt 0:00:09]} 2. d4 {[%emt 0:00:10]} Nf6 {[%emt 0:00:05]} 3. Nc3 {[%emt 0:00:14]} g6 {[%emt 0:00:07]} 4. Bg5 {[%emt 0:00:19]} Bg7 {[%emt 0:00:06]} 5. Qd2 {[%emt 0:00:32]} O-O {[%emt 0:09:22]} 6. O-O-O {[%emt 0:02:18]} b6 {[%emt 0:02:29]} 7. f3 {[%emt 0:10:50]} Nbd7 {[%emt 0:08:10]} 8. h4 {[%emt 0:02:12]} Bb7 {[%emt 0:11:28]} 9. g4 {[%emt 0:17:21]} h5 {[%emt 0:03:27]} 10. Qe2 {[%emt 0:09:30]} (10. Nge2 $16) 10... Qe8 {[%emt 0:11:18]} 11. Bh3 {[%emt 0:05:54]} e6 {[%emt 0:07:48]} 12. Rh2 {[%emt 0:04:55]} a6 {[%emt 0:03:01]} 13. e5 {[%emt 0:11:38]} Nh7 {[%emt 0:01:46]} 14. f4 {[%emt 0:03:21]} hxg4 {[%emt 0:03:00]} 15. Bxg4 {[%emt 0:00:56]} c5 {[%emt 0:00:44]} 16. Ne4 {[%emt 0:03:06]} Bxe4 {[%emt 0:00:11]} 17. Qxe4 {[%emt 0:00:09]} cxd4 {[%emt 0:00:08]} 18. Qxd4 {[%emt 0:01:28] [#]} Nxe5 $1 {[%emt 0:07:16]} 19. fxe5 {[%emt 0:01:20]} Bxe5 {[%emt 0:00:19]} 20. Qd2 {[%emt 0:00:45]} Nxg5 {[%emt 0:02:16]} 21. hxg5 $2 {[%emt 0:02:22]} (21. Re2 $17 {was called for.} Nh7 22. b3) 21... Qa4 {[%emt 0:00:13]} 22. Rf2 {[%emt 0:05:41]} Qxg4 {[%emt 0:00:24]} 23. Kb1 {[%emt 0:00:34]} d5 {[%emt 0:02:27]} 24. Nf3 {[%emt 0:02:15]} Bg7 {[%emt 0:00:15]} 25. Rh1 {[%emt 0:00:59]} Rfc8 {[%emt 0:01:23]} 26. Rh4 {[%emt 0:05:20]} Qf5 {[%emt 0:01:11]} 27. Rf4 {[%emt 0:01:25]} Rxc2 {[%emt 0:01:07]} 28. Qxc2 {[%emt 0:03:01]} Qxf4 {[%emt 0:00:05]} 29. Qc6 {[%emt 0:00:50]} Rf8 {[%emt 0:02:13]} 30. Rf1 {[%emt 0:00:47]} Qe4+ {[%emt 0:00:47]} 31. Ka1 {[%emt 0:00:45]} Qe2 $19 {[%emt 0:00:21]} 32. Qc1 {[%emt 0:00:12]} Bxb2+ {[%emt 0:00:13]} 33. Qxb2 {[%emt 0:00:08]} Qxf1+ {[%emt 0:00:03]} 34. Qb1 {[%emt 0:00:15]} Qxf3 {[%emt 0:00:05]} 0-1

[Event "Polish Youth Ekstraliga 2022"]
[Site "Lublin"]
[Date "2022.07.01"]
[Round "7.5"]
[White "Siekanska, Maria"]
[Black "Lochina, Justyna"]
[Result "1/2-1/2"]
[ECO "A67"]
[WhiteElo "1964"]
[BlackElo "1672"]
[Annotator "RC"]
[PlyCount "119"]
[EventDate "2022.06.24"]
[EventType "team-tourn"]
[EventCountry "POL"]
[SourceTitle "playchess.com"]
[Source "ChessBase"]
[SourceQuality "1"]
[TimeControl "40/5400+30:1800+30"]

1. d4 {[%emt 0:00:02]} Nf6 {[%emt 0:00:06]} 2. c4 {[%emt 0:00:07]} e6 {[%emt 0:00:04]} 3. Nc3 {[%emt 0:00:05]} c5 {[%emt 0:00:08]} 4. d5 {[%emt 0:00:06]} exd5 {[%emt 0:00:08]} 5. cxd5 {[%emt 0:00:06]} d6 {[%emt 0:00:08]} 6. e4 {[%emt 0:00:12]} g6 {[%emt 0:00:39]} 7. f4 {[%emt 0:00:10]} Bg7 {[%emt 0:02:29]} 8. Bb5+ {[%emt 0:00:28]} Nfd7 {[%emt 0:01:58]} 9. a4 {[%emt 0:01:22]} O-O {[%emt 0:05:09]} 10. Nf3 {[%emt 0:00:38]} Re8 {[%emt 0:02:47]} 11. O-O {[%emt 0:01:52]} a6 {[%emt 0:12:21]} 12. Be2 {[%emt 0:07:17]} Qc7 {[%emt 0:03:45]} 13. Qc2 {[%emt 0:09:33]} Nf6 {[%emt 0:14:55]} 14. h3 {[%emt 0:17:30]} Nbd7 {[%emt 0:03:24]} 15. Be3 {[%emt 0:03:35]} c4 {[%emt 0:20:51]} 16. Rae1 {[%emt 0:05:48]} Nc5 {[%emt 0:03:03]} 17. e5 {[%emt 0:03:27]} Bf5 {[%emt 0:04:09]} 18. Qd1 {[%emt 0:01:55]} Nfd7 {[%emt 0:04:48]} 19. Bxc4 {[%emt 0:09:41]} Ne4 {[%emt 0:07:56]} 20. Nxe4 {[%emt 0:03:57]} Bxe4 {[%emt 0:00:23]} 21. Nd2 {[%emt 0:01:20]} Nb6 {[%emt 0:03:14]} 22. Bxb6 {[%emt 0:02:16]} Qxb6+ {[%emt 0:00:10]} 23. Kh1 {[%emt 0:00:57]} Bf5 {[%emt 0:00:49]} 24. g4 {[%emt 0:04:11]} Bd7 {[%emt 0:00:39]} 25. e6 {[%emt 0:03:15]} fxe6 {[%emt 0:00:48]} 26. dxe6 {[%emt 0:00:24]} Bc6+ {[%emt 0:00:49]} 27. Kh2 {[%emt 0:00:16]} Qxb2 {[%emt 0:02:49]} 28. Bb3 {[%emt 0:05:50]} d5 {[%emt 0:01:59]} 29. h4 {[%emt 0:01:11]} Re7 {[%emt 0:00:39]} 30. f5 {[%emt 0:01:14]} gxf5 {[%emt 0:02:36]} 31. gxf5 {[%emt 0:00:10]} Kh8 {[%emt 0:00:54]} 32. Bc2 {[%emt 0:01:40]} Rg8 {[%emt 0:00:34]} 33. Kh3 {[%emt 0:01:59]} Bf6 {[%emt 0:01:12]} 34. Nf3 {[%emt 0:01:03]} Qc3 {[%emt 0:00:31]} 35. Bd3 {[%emt 0:00:56]} Bxa4 {[%emt 0:00:29]} 36. Qe2 {[%emt 0:02:12]} Bb5 {[%emt 0:00:32]} 37. Bxb5 {[%emt 0:00:40]} axb5 {[%emt 0:00:05]} 38. Qxb5 {[%emt 0:00:43]} d4 {[%emt 0:00:55]} 39. Rd1 {[%emt 0:06:50]} Qc2 {[%emt 0:00:23]} 40. Rg1 {[%emt 0:00:00]} Reg7 {[%emt 0:00:00]} 41. Rxg7 {[%emt 0:20:13]} Rxg7 {[%emt 0:19:23]} 42. Rg1 {[%emt 0:00:38]} Rxg1 {[%emt 0:01:21]} 43. Nxg1 {[%emt 0:00:06]} Qc6 {[%emt 0:03:00]} 44. Qxc6 {[%emt 0:00:33]} bxc6 {[%emt 0:00:06]} 45. Nf3 {[%emt 0:00:46]} Kg7 {[%emt 0:03:13]} 46. Kg4 {[%emt 0:00:35]} c5 {[%emt 0:01:46]} 47. Kf4 {[%emt 0:00:34]} c4 {[%emt 0:01:23]} 48. Ke4 {[%emt 0:00:26]} d3 {[%emt 0:01:16]} 49. Nd2 {[%emt 0:00:45]} c3 {[%emt 0:00:45]} 50. Kxd3 {[%emt 0:00:06]} cxd2 {[%emt 0:00:10]} 51. Kxd2 {[%emt 0:00:01]} Bxh4 {[%emt 0:00:49]} 52. Ke2 {[%emt 0:00:04]} Kf6 {[%emt 0:00:23]} 53. Kf1 {[%emt 0:00:05]} Kxf5 {[%emt 0:00:22]} 54. Kg2 {[%emt 0:00:06]} Kxe6 {[%emt 0:00:11]} 55. Kh1 {[%emt 0:00:03]} Kf5 {[%emt 0:00:12]} 56. Kg2 {[%emt 0:00:05]} Kg4 {[%emt 0:00:10]} 57. Kh1 {[%emt 0:00:16]} Kg3 {[%emt 0:01:00]} 58. Kg1 {[%emt 0:00:05]} Bg5 {[%emt 0:00:08]} 59. Kh1 {[%emt 0:00:04]} h5 {[%emt 0:00:22]} 60. Kg1 {[%emt 0:00:06]} 1/2-1/2

[Event "Polish Youth Ekstraliga 2022"]
[Site "Lublin"]
[Date "2022.07.01"]
[Round "7.6"]
[White "Smietanska, Wiktoria"]
[Black "Ziobrowska, Maja"]
[Result "1-0"]
[ECO "C78"]
[WhiteElo "1879"]
[BlackElo "1609"]
[Annotator "NA RC"]
[PlyCount "73"]
[EventDate "2022.06.24"]
[EventType "team-tourn"]
[EventCountry "POL"]
[SourceTitle "playchess.com"]
[Source "ChessBase"]
[SourceQuality "1"]
[TimeControl "40/5400+30:1800+30"]

1. e4 {[%emt 0:00:02]} e5 {[%emt 0:00:05]} 2. Nf3 {[%emt 0:00:07]} Nc6 {[%emt 0:00:06]} 3. Bb5 {[%emt 0:00:08]} a6 {[%emt 0:00:07]} 4. Ba4 {[%emt 0:00:07]} Nf6 {[%emt 0:00:23]} 5. O-O {[%emt 0:00:13]} b5 {[%emt 0:00:04]} 6. Bb3 {[%emt 0:00:11]} Bb7 {[%emt 0:00:08]} 7. Re1 {[%emt 0:02:28]} Bc5 {[%emt 0:00:05]} 8. c3 {[%emt 0:00:54]} d6 {[%emt 0:00:04]} 9. d4 {[%emt 0:01:35]} Bb6 {[%emt 0:00:08]} 10. a4 {[%emt 0:02:28]} Qd7 {[%emt 0:01:55]} 11. Bc2 {[%emt 0:06:11]} O-O-O {[%emt 0:03:30]} 12. axb5 {[%emt 0:01:48]} axb5 {[%emt 0:00:07]} 13. d5 {[%emt 0:04:36]} Ng4 {[%emt 0:15:20]} 14. Re2 {[%emt 0:11:46]} Ne7 {[%emt 0:00:58]} 15. h3 {[%emt 0:00:39]} h5 {[%emt 0:20:41]} 16. Ng5 {[%emt 0:03:48]} Ng6 {[%emt 0:07:23]} 17. c4 {[%emt 0:02:25]} Qe7 {[%emt 0:01:52]} 18. cxb5 {[%emt 0:03:15]} Nf4 {[%emt 0:02:13]} 19. Bxf4 {[%emt 0:01:39]} exf4 {[%emt 0:00:06]} 20. Nf3 {[%emt 0:03:24]} Ne5 {[%emt 0:03:39]} 21. Nbd2 {[%emt 0:01:46]} Nxf3+ {[%emt 0:06:35]} 22. Nxf3 {[%emt 0:00:12]} g5 {[%emt 0:00:19]} 23. Nd4 {[%emt 0:01:04]} g4 {[%emt 0:00:26]} 24. Nc6 {[%emt 0:02:30]} Qg5 {[%emt 0:00:17]} 25. e5 {[%emt 0:02:59]} Rde8 {[%emt 0:07:29]} 26. Qd3 {[%emt 0:01:58]} Ba8 {[%emt 0:14:25]} 27. Rxa8+ {[%emt 0:01:01]} Kb7 {[%emt 0:00:04]} 28. Rxe8 {[%emt 0:00:53]} (28. Na5+ $142 Bxa5 29. Rxa5 gxh3 30. f3) 28... Rxe8 {[%emt 0:00:08]} 29. hxg4 $18 {[%emt 0:06:45]} (29. Qa3 Ra8 30. Qxa8+ (30. h4 $2 Rxa3 31. bxa3 Qxh4 $19) 30... Kxa8 31. exd6 cxd6 32. Re8+ Kb7 33. Re7+ Bc7 $19) 29... hxg4 $2 {[%emt 0:00:56] [#]} (29... f3) 30. exd6 $1 {[%emt 0:03:03]} (30. Qa3 Ra8 31. Qxa8+ Kxa8 32. exd6 cxd6 $19) 30... Qh4 {[%emt 0:04:05]} 31. Qh7 {[%emt 0:14:59]} Qxh7 {[%emt 0:02:27]} 32. Bxh7 {[%emt 0:01:13]} Rxe2 {[%emt 0:00:06]} 33. d7 {[%emt 0:00:56]} g3 {[%emt 0:00:04]} 34. Kf1 {[%emt 0:00:47]} Rxf2+ {[%emt 0:01:38]} 35. Ke1 {[%emt 0:00:15]} f3 {[%emt 0:02:18]} 36. d8=Q Ba7 {[%emt 0:00:35]} 37. d6 {[%emt 0:01:26]} 1-0

[Event "Polish Youth Ekstraliga 2022"]
[Site "Lublin"]
[Date "2022.07.01"]
[Round "7.7"]
[White "Karolczuk, Iwo"]
[Black "Baum, Jonasz"]
[Result "0-1"]
[ECO "C01"]
[WhiteElo "2319"]
[BlackElo "2409"]
[Annotator "ChessBase"]
[PlyCount "134"]
[EventDate "2022.06.24"]
[EventType "team-tourn"]
[EventCountry "POL"]
[SourceTitle "playchess.com"]
[Source "ChessBase"]
[SourceQuality "1"]
[TimeControl "40/5400+30:1800+30"]

1. e4 {[%emt 0:00:11]} e6 {[%emt 0:00:23]} 2. d4 {[%emt 0:00:20]} d5 {[%emt 0:00:05]} 3. exd5 {[%emt 0:00:05]} exd5 {[%emt 0:00:11]} 4. Nf3 {[%emt 0:00:03]} Nf6 {[%emt 0:00:39]} 5. Bd3 {[%emt 0:00:04]} c5 {[%emt 0:00:52]} 6. O-O {[%emt 0:02:05]} c4 {[%emt 0:00:25]} 7. Re1+ {[%emt 0:00:04]} Be7 {[%emt 0:00:06]} 8. Bf1 {[%emt 0:00:06]} O-O {[%emt 0:00:07]} 9. b3 {[%emt 0:00:06]} cxb3 {[%emt 0:00:03]} 10. axb3 {[%emt 0:00:04]} Nc6 {[%emt 0:00:40]} 11. h3 {[%emt 0:05:37]} Bf5 {[%emt 0:06:36]} 12. Ne5 {[%emt 0:14:49]} Nb4 {[%emt 0:14:20]} 13. Na3 {[%emt 0:05:08]} Rc8 {[%emt 0:01:50]} 14. c4 {[%emt 0:02:35]} a6 {[%emt 0:02:18]} 15. Bd2 {[%emt 0:12:53]} dxc4 {[%emt 0:18:14]} 16. bxc4 {[%emt 0:03:04]} Qxd4 {[%emt 0:04:12]} 17. Nf3 {[%emt 0:00:46]} Qd7 {[%emt 0:05:26]} 18. Qb3 {[%emt 0:03:58]} Nc6 {[%emt 0:00:21]} 19. Bf4 {[%emt 0:02:54]} Be4 {[%emt 0:07:24]} 20. Ne5 {[%emt 0:04:51]} Qf5 {[%emt 0:02:55]} 21. Nxc6 {[%emt 0:00:28]} Bxc6 {[%emt 0:00:51]} 22. Be3 {[%emt 0:02:01]} Bc5 {[%emt 0:04:25]} 23. Nc2 {[%emt 0:02:42]} Bxe3 {[%emt 0:00:44]} 24. Nxe3 {[%emt 0:01:28]} Qc5 {[%emt 0:01:32]} 25. Qc3 {[%emt 0:01:20]} Ne4 {[%emt 0:05:21]} 26. Qc2 {[%emt 0:01:46]} Rcd8 {[%emt 0:01:17]} 27. Bd3 {[%emt 0:00:13]} Rfe8 {[%emt 0:05:33]} 28. Rad1 {[%emt 0:02:09]} Nf6 {[%emt 0:00:28]} 29. Qc3 {[%emt 0:01:16]} Qg5 {[%emt 0:01:32]} 30. Bf1 {[%emt 0:00:53]} h6 {[%emt 0:05:14]} 31. Qc2 {[%emt 0:03:14]} Qa5 {[%emt 0:01:14]} 32. Qb2 {[%emt 0:02:47]} Rxd1 {[%emt 0:02:51]} 33. Rxd1 {[%emt 0:00:09]} Rd8 {[%emt 0:02:58]} 34. Ra1 {[%emt 0:03:55]} Qd2 {[%emt 0:01:41]} 35. Qb6 {[%emt 0:01:48]} Qd4 {[%emt 0:01:44]} 36. Qa5 {[%emt 0:00:27]} Re8 {[%emt 0:01:06]} 37. Nf5 {[%emt 0:02:43]} Qe5 {[%emt 0:00:33]} 38. Qxe5 {[%emt 0:00:26]} Rxe5 {[%emt 0:00:01]} 39. Nd4 {[%emt 0:00:01]} Be4 {[%emt 0:01:54]} 40. f3 {[%emt 0:00:00]} Bg6 {[%emt 0:00:00]} 41. Ra2 {[%emt 0:09:55]} Nd7 {[%emt 0:04:32]} 42. Rd2 {[%emt 0:03:12]} Re7 {[%emt 0:06:11]} 43. Nb3 {[%emt 0:06:39]} Re3 {[%emt 0:04:07]} 44. Rb2 {[%emt 0:06:15]} Re1 {[%emt 0:02:43]} 45. Kf2 {[%emt 0:04:12]} Rb1 {[%emt 0:00:12]} 46. Rxb1 {[%emt 0:00:05]} Bxb1 47. Ke3 {[%emt 0:00:05]} Bc2 {[%emt 0:04:08]} 48. Nd2 {[%emt 0:05:03]} Kf8 {[%emt 0:01:40]} 49. Kd4 {[%emt 0:00:18]} b6 {[%emt 0:02:27]} 50. Kc3 {[%emt 0:02:55]} Ba4 {[%emt 0:03:07]} 51. Ne4 {[%emt 0:02:57]} Ke7 {[%emt 0:00:37]} 52. c5 {[%emt 0:00:43]} Nxc5 {[%emt 0:01:29]} 53. Nxc5 {[%emt 0:00:13]} bxc5 {[%emt 0:00:03]} 54. Bxa6 {[%emt 0:00:05]} g5 {[%emt 0:05:13]} 55. Bd3 {[%emt 0:00:47]} h5 {[%emt 0:00:46]} 56. Bc4 {[%emt 0:01:26]} h4 {[%emt 0:00:15]} 57. Kd3 {[%emt 0:00:03]} Bc6 {[%emt 0:01:11]} 58. Ke3 {[%emt 0:00:09]} f6 {[%emt 0:00:07]} 59. Bf1 {[%emt 0:00:46]} Kd6 {[%emt 0:01:01]} 60. f4 {[%emt 0:00:06]} Bd5 {[%emt 0:00:20]} 61. fxg5 {[%emt 0:00:35]} fxg5 {[%emt 0:00:01]} 62. Kf2 {[%emt 0:00:14]} Ke5 {[%emt 0:00:04]} 63. g3 {[%emt 0:00:07]} Kd4 {[%emt 0:00:35]} 64. gxh4 {[%emt 0:00:07]} gxh4 {[%emt 0:00:01]} 65. Be2 {[%emt 0:00:48]} Be6 {[%emt 0:00:23]} 66. Kf3 {[%emt 0:02:03]} Bxh3 {[%emt 0:00:08]} 67. Bc4 {[%emt 0:00:06]} Kxc4 {[%emt 0:00:05]} 0-1